Cogmind - Beta 15 @@@ ROGUE MODE // 2025.09.15 @ 15:04:22 Player: Petvaria Result: Destroyed by G-47 Trooper with Particle Gun Performance ------------- Evolutions (2) 1000 Regions Visited (5) 1000 Robots Destroyed (37) 185 Value Destroyed (702) 702 Prototype IDs (2) 40 Alien Tech Used (0) 0 Bonus (93) 93 TOTAL SCORE: 3020 Bonus ------- Follower Combat Kills 109 Friendly Fire -16 Cogmind --------- Core Integrity 0/550 Matter 300/300 Energy 100/100 System Corruption 0% Temperature Cool (9) Movement Core (50) Location -8/Materials Parts ------- > --- POWER (1) -------- (None) > --- PROPULSION (4) --- (None) > --- UTILITY (4) ------ (None) > --- WEAPON (2) ------- Improved Medium Laser > --- INVENTORY (5) ---- Hacking Suite Hacking Suite Datajack Peak State ------------ > --- POWER ------------ Light Ion Engine > --- PROPULSION ------- Light Treads Light Treads > --- UTILITY ---------- Small Storage Unit Splice Drone Bay > --- WEAPON ----------- Assault Rifle Light Assault Rifle > --- INVENTORY -------- Light Ion Engine Hacking Suite Hacking Suite Light Assault Rifle Light Assault Rifle Datajack [Rating: 14] Favorites ----------- Power Light Ion Engine Engine Light Ion Engine Power Core Light Nuclear Core Propulsion Light Treads Treads Light Treads Wheel Wheel Utility Small Storage Unit Device Splice Drone Bay Storage Small Storage Unit Weapon Assault Rifle Energy Gun Medium Laser Energy Cannon Particle Cannon Ballistic Gun Assault Rifle Launcher Grenade Launcher Build | -11 -10 -10 -10 -9 -8 ------- Run | Yrd Mat Min Exi Min Mat Slots Evolved 4 | . . . . . 4 Power . | . . . . . . Propulsion 2 | . . . . . 2 Utility 2 | . . . . . 2 Weapon . | . . . . . . Parts Attached 22 | 6 5 3 . 1 7 Power 4 | 1 1 . . 1 1 Engine 3 | 1 . . . 1 1 Core 1 | . 1 . . . . Reactor . | . . . . . . Propulsion 8 | 2 3 1 . . 2 Treads 5 | 2 2 . . . 1 Leg . | . . . . . . Wheel 3 | . 1 1 . . 1 Hover . | . . . . . . Flight . | . . . . . . Utility 2 | 1 . 1 . . . Device 1 | . . 1 . . . Storage 1 | 1 . . . . . Processor . | . . . . . . Hackware . | . . . . . . Protection . | . . . . . . Artifact . | . . . . . . Weapon 8 | 2 1 1 . . 4 Energy Gun 2 | 1 . . . . 1 Energy Cannon 1 | . . . . . 1 Ballistic Gun 4 | 1 . 1 . . 2 Ballistic Cannon . | . . . . . . Launcher 1 | . 1 . . . . Special Weapon . | . . . . . . Impact Weapon . | . . . . . . Slashing Weapon . | . . . . . . Piercing Weapon . | . . . . . . Special Melee Weapon . | . . . . . . Unidentified Prototypes 2 | . . 1 . . 1 Parts Lost 19 | . . 6 . . 13 Power 3 | . . 1 . . 2 Propulsion 7 | . . 3 . . 4 Utility 2 | . . . . . 2 Weapon 7 | . . 2 . . 5 Highest Loss Streak 8 | . . 2 . . 8 To Critical Strikes . | . . . . . . Average Backups 7 | 2 7 7 8 6 4 Power 1 | . 1 1 2 1 . Propulsion 1 | 1 3 . . . . Utility 1 | . 1 2 3 2 2 Weapon 1 | . 1 1 2 2 . Tool/Special . | . . . . . . Unused Backups 7 | . 4 . . . 3 Power . | . . . . . . Propulsion 3 | . 3 . . . . Utility 2 | . . . . . 2 Weapon 1 | . 1 . . . . Tool/Special 1 | . . . . . 1 Average Slot Usage (%) 82 | . 85 74 71 99 34 Engine 5 | . 2 . . 14 3 Core 4 | . 11 5 . . . Treads 23 | . 26 20 28 28 6 Wheel 2 | . 1 5 . . . Device 4 | . . . . 13 5 Storage 13 | . 14 14 14 14 6 Energy Gun 4 | . 14 3 . . 1 Ballistic Gun 20 | . 12 19 28 28 9 Launcher 1 | . 1 4 . . . Peak Build Rating 14 | 6 9 13 6 14 14 Average Rating 9 | 4 8 7 6 13 8 On Entrance 6 | . 6 9 6 6 14 Naked Turns . | . . . . . . Heaviest Build 19 | 12 15 15 8 19 19 Greatest Support 40 | 40 40 40 40 40 40 Greatest Overweight (x) 4 | . 1 4 . . 4 Average Overweight (x) . | . . . . . 1 Largest Inventory Capacity 8 | 8 8 8 8 8 8 Average Capacity 7 | 7 8 8 8 8 7 Most Carried 8 | 6 8 8 8 7 7 Average Carried 7 | 3 7 7 8 6 4 Final Capacity 8 | 8 8 8 8 8 5 Final Carried 8 | 6 8 8 8 7 3 Class Distribution -------------------- 100% | Mutant Dominant Class ---------------- Mutant | -10/Materials Mutant | -10/Mines Mutant | -10/Exiles Mutant | -9/Mines Mutant | -8/Materials Resources | -11 -10 -10 -10 -9 -8 ----------- Run | Yrd Mat Min Exi Min Mat Matter Collected 938 | 204 277 366 . 20 71 Remotely . | . . . . . . Salvage Created 1062 | . 522 258 . . 282 Parts 68 | . 40 12 . . 16 Haulers Intercepted 1 | . 1 . . . . Recyclers Shooed 4 | . 3 1 . . . Parts Field Recycled . | . . . . . . Retrieved Matter . | . . . . . . Parts Self-Destructed . | . . . . . . Prevented . | . . . . . . Kills | -11 -10 -10 -10 -9 -8 ------- Run | Yrd Mat Min Exi Min Mat Combat Hostiles Destroyed 36 | . 12 17 . . 7 Guns 24 | . 12 6 . . 6 Cannons 1 | . . . . . 1 AOE 11 | . . 11 . . . Classes Destroyed 11 | . 7 3 . . 1 Worker 3 | . 2 1 . . . Builder 1 | . 1 . . . . Tunneler 1 | . . 1 . . . Hauler 1 | . 1 . . . . Recycler 2 | . . 2 . . . Operator 2 | . 2 . . . . Watcher 3 | . 3 . . . . Swarmer 13 | . 6 5 . . 2 Grunt 10 | . 6 . . . 4 Sentry 1 | . . . . . 1 Assembled 12 | . . 12 . . . Best Kill Streak 10 | . 3 10 . . 3 Combat Bots Only 10 | . 3 10 . . 3 Max Kills in Single Turn 2 | . 1 2 . . 1 Gunslinging 1 | . . 1 . . . Exploded 2 | . . 2 . . . Melee . | . . . . . . Uniques/NPCs Destroyed . | . . . . . . Combat | -11 -10 -10 -10 -9 -8 -------- Run | Yrd Mat Min Exi Min Mat Hostile Shots Fired 223 | . 43 45 . . 135 Missed 55 | . 11 12 . . 32 Hits 168 | . 32 33 . . 103 Melee 1 | . . 1 . . . Projectile 167 | . 32 32 . . 103 AOE 1 | . . 1 . . . Critical Strikes 3 | . 1 . . . 2 Part Disruptions 1 | . . 1 . . . Damage Taken 2564 | . 316 550 . . 1698 Core 713 | . . 148 . . 565 Absorbed by Shields . | . . . . . . Core Remaining (%) 70 | 100 . . . 40 . Volleys Fired 155 | . 57 44 . . 54 Largest 2 | . 2 2 . . 2 Hottest 124 | . 70 70 . . 124 Shots Fired 260 | . 110 65 . . 85 Gun 226 | . 110 42 . . 74 Cannon 11 | . . . . . 11 Launcher 23 | . . 23 . . . Special . | . . . . . . Kinetic 155 | . 57 38 . . 60 Thermal 82 | . 53 4 . . 25 Explosive 23 | . . 23 . . . Electromagnetic . | . . . . . . Robot Hit Streak 9 | . 7 6 . . 9 Robot Miss Streak 4 | . 4 2 . . 2 Penetration Max . | . . . . . . Secondary Targets 2 | . . 1 . . 1 Max Gunslinging Chain 1 | . . 1 . . 1 Shots Hit Robots 150 | . 61 26 . . 63 Core Hits 102 | . 31 49 . . 22 Critical Kills 1 | . 1 . . . . Critical Parts Destroyed 1 | . . . . . 1 Critical Strikes 4 | . 3 . . . 1 Burn 2 | . 2 . . . . Destroy 2 | . 1 . . . 1 Melee Attacks . | . . . . . . Impact . | . . . . . . Slashing . | . . . . . . Piercing . | . . . . . . Sneak Attacks . | . . . . . . Combat Hostiles . | . . . . . . Follow-up Attacks . | . . . . . . Damage Inflicted 2676 | . 766 1175 . . 735 Guns 1568 | . 766 232 . . 570 Cannons 165 | . . . . . 165 Explosions 943 | . . 943 . . . Melee . | . . . . . . Ramming . | . . . . . . Kinetic 962 | . 386 195 . . 381 Thermal 771 | . 380 37 . . 354 Explosive 943 | . . 943 . . . Electromagnetic . | . . . . . . Impact . | . . . . . . Slashing . | . . . . . . Piercing . | . . . . . . Highest Corruption . | . . . . . . Average Corruption . | . . . . . . Corruption Purged . | . . . . . . Corruption Blocked . | . . . . . . Overload Shots . | . . . . . . Overflow Damage 30 | . . 30 . . . Projectiles . | . . . . . . Explosions 30 | . . 30 . . . Melee . | . . . . . . Knockbacks . | . . . . . . Impact . | . . . . . . Kinetic . | . . . . . . Secondary . | . . . . . . Self-Inflicted Damage 207 | . . 207 . . . Shots 8 | . . 8 . . . Rammed . | . . . . . . Targets Rammed . | . . . . . . Kicked . | . . . . . . Crushed . | . . . . . . Highest Temperature 222 | . 132 60 . . 222 Average Temperature 40 | . 28 15 . . 83 Received Heat Transfer 1065 | . 141 60 . . 864 Siege Activations . | . . . . . . Martial Activations . | . . . . . . Shielding Activations . | . . . . . . Robots Disrupted . | . . . . . . Combat Hostiles . | . . . . . . Robots Corrupted . | . . . . . . Combat Hostiles . | . . . . . . Parts Fried . | . . . . . . Impact Corruptions . | . . . . . . Robots Melted . | . . . . . . Combat Hostiles . | . . . . . . Parts Melted 2 | . . . . . 2 Heat Transferred 2072 | . 1258 111 . . 703 Parts Sabotaged . | . . . . . . Parts Stolen . | . . . . . . Parts Stripped . | . . . . . . Power Chain Reactions . | . . . . . . Alert | -11 -10 -10 -10 -9 -8 ------- Run | Yrd Mat Min Exi Min Mat Maximum Alert Level . | . . . . . . Low Security (%) 100 | 100 100 100 . 100 100 Level 1 . | . . . . . . Level 2 . | . . . . . . Level 3 . | . . . . . . Level 4 . | . . . . . . Level 5 . | . . . . . . High Security . | . . . . . . Max Security . | . . . . . . Peak Influence 86 | . 86 84 . . 80 Initial . | . . . . . . Average 16 | . 26 21 . . 37 Influence Increases 1097 | . 350 456 . . 291 Destroy 0b10 Robot/C 620 | . 240 200 . . 180 Destroy 0b10 Robot/NC 65 | . 45 20 . . . Destroy Leader 118 | . 58 30 . . 30 Allied During Kill 45 | . . 39 . . 6 Successful Hack 6 | . 6 . . . . Disable Machine 15 | . . 15 . . . Destroy Structure 153 | . 1 152 . . . Lose Combat Pursuer 75 | . . . . . 75 Influence Decreases 1042 | . 350 456 . . 236 Time Decay 867 | . 350 411 . . 106 Lost Part 172 | . . 42 . . 130 Lost Ally 3 | . . 3 . . . Squads Dispatched 2 | . 2 . . . . Investigation . | . . . . . . Extermination . | . . . . . . Reinforcement 2 | . 2 . . . . Assault . | . . . . . . Garrison . | . . . . . . Intercept . | . . . . . . Searches Triggered . | . . . . . . Construction Impeded . | . . . . . . Haulers Reinforced . | . . . . . . Active Scanning Responses . | . . . . . . Cargo Convoy Interrupts . | . . . . . . Stealth | -11 -10 -10 -10 -9 -8 --------- Run | Yrd Mat Min Exi Min Mat Distress Signals 8 | . 4 . . . 4 Communications Jammed . | . . . . . . Distress Signals . | . . . . . . Times Spotted 64 | . 20 25 . . 19 Peak Tracking Total 14 | . 3 14 . . 8 Tactical Retreats 3 | . . . . . 3 Traps | -11 -10 -10 -10 -9 -8 ------- Run | Yrd Mat Min Exi Min Mat Traps Triggered . | . . . . . . Indirectly . | . . . . . . Trap Hack Attempts . | . . . . . . Triggered . | . . . . . . Disarmed . | . . . . . . Reprogrammed . | . . . . . . Reused . | . . . . . . Traps Extracted . | . . . . . . Installed . | . . . . . . Triggered . | . . . . . . Machines | -11 -10 -10 -10 -9 -8 ---------- Run | Yrd Mat Min Exi Min Mat Machines Disabled 3 | . . 3 . . . Max in Single Turn 1 | . . 1 . . . Machines Repaired . | . . . . . . Machines Dismantled . | . . . . . . Machines Sabotaged . | . . . . . . Overloaded Fab Kills . | . . . . . . Hacking | -11 -10 -10 -10 -9 -8 --------- Run | Yrd Mat Min Exi Min Mat Machines Accessed 3 | . 1 1 1 . . Terminals 1 | . 1 . . . . Fabricators . | . . . . . . Repair Stations . | . . . . . . Recycling Units . | . . . . . . Scanalyzers . | . . . . . . Garrison Access . | . . . . . . Total Hacks 4 | . 2 1 1 . . Successful 3 | . 1 1 1 . . Failed 1 | . 1 . . . . Catastrophic . | . . . . . . Database Lockouts . | . . . . . . Manual 2 | . 2 . . . . Terminals 2 | . 2 . . . . Fabricators . | . . . . . . Repair Stations . | . . . . . . Recycling Units . | . . . . . . Scanalyzers . | . . . . . . Garrison Access . | . . . . . . Terminal Hacks 2 | . . 1 1 . . Record 1 | . . . 1 . . Open Door 1 | . . 1 . . . Fabricator Hacks . | . . . . . . Repair Station Hacks . | . . . . . . Recycling Unit Hacks . | . . . . . . Scanalyzer . | . . . . . . Garrison Access Hacks . | . . . . . . Unauthorized Hacks 1 | . 1 . . . . Terminals 1 | . 1 . . . . Operators 1 | . 1 . . . . Fabricators . | . . . . . . Repair Stations . | . . . . . . Recycling Units . | . . . . . . Scanalyzers . | . . . . . . Garrison Access . | . . . . . . Data Cores Recovered . | . . . . . . Used . | . . . . . . Hacking Detections 1 | . 1 . . . . Full Trace Events . | . . . . . . Feedback Events . | . . . . . . Feedback Blocked . | . . . . . . Robot Schematics Acquired . | . . . . . . Robots Built . | . . . . . . Authchips . | . . . . . . Time . | . . . . . . Total Robot Build Rating . | . . . . . . Part Schematics Acquired . | . . . . . . Parts Built . | . . . . . . Authchips . | . . . . . . Time . | . . . . . . Total Part Build Rating . | . . . . . . Parts Repaired . | . . . . . . Time . | . . . . . . Parts Recycled . | . . . . . . Recycled Matter . | . . . . . . Retrieved Matter . | . . . . . . Retrieved Components . | . . . . . . Parts Scanalyzed . | . . . . . . Part Schematics Acquired . | . . . . . . Parts Damaged . | . . . . . . Bothacking | -11 -10 -10 -10 -9 -8 ------------ Run | Yrd Mat Min Exi Min Mat Used RIF Installer . | . . . . . . Robots Hacked . | . . . . . . Non-combat . | . . . . . . Combat . | . . . . . . Robot Hacks Applied . | . . . . . . Relay Couplers Released . | . . . . . . Fabnet Peak Effective % . | . . . . . . Robots Rewired . | . . . . . . Allies Hacked . | . . . . . . Hacks Repelled . | . . . . . . Allies | -11 -10 -10 -10 -9 -8 -------- Run | Yrd Mat Min Exi Min Mat Total Allies 6 | . . 6 . . . Largest Group 5 | . . 5 3 1 1 Highest-Rated Group 91 | . . 91 60 13 13 Highest-Rated Ally 31 | . . 31 31 13 13 Total Orders . | . . . . . . Ally Attacks 43 | . . 34 . . 9 Total Damage 345 | . . 325 . . 20 Kills 10 | . . 8 . . 2 Allies Corrupted . | . . . . . . Allies Melted . | . . . . . . Intel | -11 -10 -10 -10 -9 -8 ------- Run | Yrd Mat Min Exi Min Mat Active Infowar (turns) . | . . . . . . Robot Analysis Total . | . . . . . . Derelict Logs Recovered 4 | . . 2 . 2 . Drone Launches 7 | . . . . . 7 Drone Recoveries 6 | . . . . . 6 Exploration | -11 -10 -10 -10 -9 -8 ------------- Run | Yrd Mat Min Exi Min Mat Turns Passed 4872 | 91 1033 1719 265 1504 260 Spaces Moved 2624 | 51 549 1131 166 648 79 Core 81 | 7 . 16 . . 58 Treads 1875 | 44 444 556 166 648 17 Legs . | . . . . . . Wheels 668 | . 105 559 . . 4 Hover . | . . . . . . Flight . | . . . . . . Fastest Speed 50 | 50 95 95 160 160 50 Average Speed 142 | 144 147 129 160 160 130 Slowest Speed 250 | 160 160 250 160 160 250 Overloaded Moves . | . . . . . . Propulsion Burnouts . | . . . . . . Robots Hopped . | . . . . . . Potential Cave-ins . | . . . . . . Cave-ins Triggered . | . . . . . . Exploration Rate (%) 57 | 4 70 99 55 103 12 Regions Visited 5 Branch Regions 3 Pre-discovered Areas 1 | . . . 1 . . Known Exits Taken . | . . . . . . Unknown Exits Taken 5 | 1 1 1 1 1 . Scrap Searched 3 | . . 1 . 2 . Spaces Dug . | . . . . . . Terrain Destroyed 178 | . . 178 . . . Melee . | . . . . . . Projectile . | . . . . . . AOE 178 | . . 178 . . . Terrain Rammed . | . . . . . . Walls Destroyed . | . . . . . . Machines Disabled . | . . . . . . Actions | -11 -10 -10 -10 -9 -8 --------- Run | Yrd Mat Min Exi Min Mat Total 3503 | 68 664 1328 166 1115 162 Wait 665 | . 41 139 1 465 19 Move 2619 | 50 548 1130 165 647 79 Hop . | . . . . . . Pick Up 28 | 12 6 6 . 1 3 Fast Attach . | . . . . . . Attach 21 | 6 . 6 . 2 7 Detach . | . . . . . . Swap 7 | . 5 2 . . . Drop 8 | . 7 1 . . . Fire 155 | . 57 44 . . 54 Melee . | . . . . . . Ram . | . . . . . . Kick . | . . . . . . Crush . | . . . . . . Escape Stasis . | . . . . . . Rewire . | . . . . . . Trap . | . . . . . . Miscellaneous . | . . . . . . Route ------- -11/Scrapyard -10/Materials (discovered 3 exits: [*Mat x2] / *Min) -10/Mines (discovered 4 exits: [*Mat x2] / *Exi / [*Sub]) -10/Exiles -9/Mines (discovered 2 exits: [*Mat x2]) -8/Materials History --------- Turn | Location | Event 3 | -11/Scrapyard | Discovered new exit (range 16) 92 | -11/Scrapyard | Entered Materials 314 | -10/Materials | Build established: Mutant 331 | -10/Materials | Discovered new exit (range 12) 396 | -10/Materials | Discovered new exit (range 16) 837 | -10/Materials | Discovered new exit (range 4) 1125 | -10/Materials | Entered Mines 1170 | -10/Mines | Assisted by bots powering up and referring to "LRC-V3" 1178 | -10/Mines | Learned Materials trap positions 1202 | -10/Mines | Found a hidden stash of uninstalled traps 1279 | -10/Mines | Discovered new exit (range 5) 1312 | -10/Mines | Discovered new exit (range 7) 1492 | -10/Mines | Discovered new exit (range 10) 1544 | -10/Mines | Assembled infested the area 1549 | -10/Mines | Assisted by a Guerilla fighting off Assembled 1561 | -10/Mines | Found the Drone Emporium 1591 | -10/Mines | Destroyed 10 combat bots 1833 | -10/Mines | Learned Materials stockpile data 1861 | -10/Mines | Core integrity fell below 50% 2484 | -10/Mines | Received a Mining Laser from a helpful Derelict 2660 | -10/Mines | Found Prototype Device 2661 | -10/Mines | Identified Splice Drone Bay 2791 | -10/Mines | Deemed a non-threat by the Exiles lab entrance 2793 | -10/Mines | Discovered new exit (range 5) 2844 | -10/Mines | Entered Exiles 2844 | -10/Exiles | Accompanied by 3 allies 2874 | -10/Exiles | Led the pair of lost Derelicts to a safe place 2883 | -10/Exiles | Met 8R-AWN 2934 | -10/Exiles | Met EX-HEX 2998 | -10/Exiles | Met EX-DEC 3006 | -10/Exiles | Learned location of Zion (-6) 3092 | -10/Exiles | Discovered new exit (range 12) 3109 | -10/Exiles | Entered Mines 3109 | -9/Mines | Accompanied by 1 ally 3330 | -9/Mines | Discovered new exit (range 9) 3385 | -9/Mines | Discovered new exit (range 10) 3431 | -9/Mines | Learned Materials emergency access door positions 4613 | -9/Mines | Entered Materials 4613 | -8/Materials | Accompanied by 1 ally 4613 | -8/Materials | Evolved 4 slots: Propulsion x2, Utility x2 4614 | -8/Materials | Loaded intel: 16 trap records 4755 | -8/Materials | Lost 8 parts (2p3n3w) 4797 | -8/Materials | Core integrity fell below 50% 4845 | -8/Materials | Core integrity fell below 20% 4873 | -8/Materials | Destroyed by G-47 Trooper with Particle Gun Last Messages --------------- Splice Drone Bay destroyed. U-05 Engineer lays Concrete. Lgt. Assault Rifle destroyed. U-05 Engineer lays Concrete. Acquired Particle Cannon. Critical hit (Burn: +37). Sml. Storage Unit destroyed. Acquired Com. Wheel. Acquired Prototype Energy Gun. Com. Wheel destroyed. Identified Imp. Medium Laser. Lgt. Angular Momentum Engine melted. Adv. Heat Sink melted. G-50 Soldier destroyed. Particle Cannon destroyed. Destroyed Lgt. Nuclear Core. G-47 Trooper destroyed. Acquired 56 matter. G-47 Trooper destroyed. Acquired 6 matter. Map ----- +----------------------------------------------------+ | ????????????????????????????????? #????????? | | ?????????????????????????????????? T +????????? | | ??????????????????????????????????? ?????????? | | ???????????????????????????????????? ??????????? | | ????????????????????????????#######?# #?#######??? | | ????????????????????????????# ### ### #??? | | ????????????????????????????# #??? | | ????????????????????????????# " #??? | | ????????????????????????????# #??? | | ???????!????????????????????# ####### #??? | | ??????????????????????######## ######### ##??? | | ??????????????????????# # ## # #???? | | ??????????????????????# T # ## """ # #???? | | ????????????+?????????# / ## """ + #???? | | ??????????????????????# # ## """ # #???? | | ??????????????????????# # ## """ # #???? | | ??????????????????????# # ## ?# ##### | | ??????????????????????###+#### #######?# # | | ????????????????????????# #??# #???????# # | | ????????????????????????# #??# #####???# # | | ????????????????????????#g#??# # #??##""#+#### | | ????????????????????????# #??# %# "####" T | | ????????????????????????# #??# %%%=[ " | | ????????????????????????#=#??# # ####" | | ????????????????????????#=#??# # ## """ """ | | ?????????????????????####@#### # ## """ """ | | ?????????????????????# =%%! # # ## """ """ | | ?????????????????????# [= + + ## | | ?????????????????????# # # ] ## | | ?????????????????????######### # ########## | | ?????????????????????????????# ######+#????????? | | ????????????????????????????? #???? #????????? | | ???????????????????????????? #???? #????????? | | ??????????????????????????? #???? #????????? | | ???????????????????????????? #?????#????????? | | ???????????????????????????## #??????????????? | | ????????????????????????????# #####??????????????? | | ????????????????????????????# ???????????????????? | | ????????????????????????????# ???????????????????? | | ????????????????????????????# ???????????????????? | | ???????????????????????????? ???????????????????? | | ???????????????????????????? ???????????????????? | | ???????????????????????????? ???????????????????? | | ????????????????????????????##???????????????????? | | ?????????????????????????????????????????????????? | | ?????????????????????????????????????????????????? | | ?????????????????????????????????????????????????? | | ??^^?????????????????????????????????????????????? | | ?????????????????????????????????????????????????? | | ?????????????????????????????????????????????????? | +----------------------------------------------------+ Best States ------------- Heat Dissipation 31 Energy Generation 14 Energy Capacity 160 Matter Stores 300 Matter Capacity 300 Sight Range 16 Terrain Scan Density 10 Evasion (%) 41 Recoil Reduction 2 Item Schematics ----------------- None Robot Schematics ------------------ None Fabricated ------------ Nothing Repaired ---------- Nothing Alien Tech Used ----------------- None Achievements -------------- None Challenges ------------ None Game ------ Seed ReactiveCloakInjector Manual? 0 Play Time 00:23:25 Cumulative 211.9 hours Start 2025.09.15 @ 14:43:04 End 2025.09.15 @ 15:04:22 Sessions 1 Manual Loads 0 Difficulty Rogue Special Mode None Game No. 188 Rogue 188 Adventurer 0 Explorer 0 Win Type - Total 11 Types 5/0/2/2/1/0/0/0/0/1 Lore% 91 Gallery% 85 Achievement% 68 Wizard Run 0 Options --------- Layout 1 ASCII 0 Keyboard 0 Movement Numpad Keybinds 0 Fullscreen 1 Font 24/Proggy Map View 50x35 Zoom Use 0% Tactical HUD 0 Map Filters NONE Filters NONE Steam 1 RUN: 7b4503d6-0969-429c-a437-d091cc17a484